{"text_format":"3","workbook":"xlsx","n_sheets":4,"sheets":["Izjava o veličini","Izjava o potporama","Prilog I.","sifrarnik"],"not_rendered":{"images":2,"external_links":2,"defined_names":9},"read":"whole","date_system":"1900"}

{"sheet":"Izjava o veličini","index":0,"n_rows":136,"n_cols":9,"rows_kept":136,"merged":[[4,1,4,8],[17,2,17,3],[20,8,21,8],[22,8,23,8],[31,2,31,3],[62,5,62,6],[62,7,62,8],[63,5,63,6],[63,7,63,8],[64,5,64,6],[64,7,64,8],[65,5,65,6],[65,7,65,8],[66,5,66,6],[66,7,66,8],[67,5,67,6],[67,7,67,8],[68,5,68,6],[68,7,68,8],[69,5,69,6],[69,7,69,8],[114,8,115,8],[116,8,117,8],[118,1,119,1],[118,2,119,7],[118,8,119,8],[137,1,137,2],[137,6,137,8]]}
[]
[]
[]
[]
[null,"IZJAVA O VELIČINI"]
[]
[null,"Ova Izjava odnosi se na veličinu poduzeća podnositelja zahtjeva za financiranje te se popunjava u skladu Prilogom I. Uredbe Komisije (EU) br. 651/2014 (dalje: Prilog I.),"]
[null,"koji je dostupan i u okviru ovog elektroničkog dokumenta. Poduzeće u smislu ove Izjave je svaki subjekt koji se bavi gospodarskom djelatnošću, bez obzira na pravni oblik."]
[null,"Podaci za izračun veličine (broj zaposlenih, ukupan godišnji promet i ukupna godišnja bilanca) odnose se na posljednje odobreno računovodstveno razdoblje, na godišnjoj"]
[null,"razini. U slučaju novoosnovanih poduzeća čija financijska izvješća još nisu odobrena, relevantni podaci uzimaju se iz pouzdane procjene sastavljene tijekom godine."]
[]
[null,"Obrazac Izjave ne smije se ni na koji način mijenjati, osim u tablicama B1, B2, B3 i C gdje je moguće dodavati ili otvarati redove."]
[]
[null,"1.","Podnositelj zahtjeva za kredit"]
[]
[null,"Tablica A - Podaci financijskih izvještaja"]
[null,null,"Naziv poslovnog subjekta (dalje: podnositelj zahtjeva)",null,"OIB","Financijska \ngodina","Broj zaposlenih\n(na temelju sati rada) ","Ukupan godišnji promet\nEUR","Ukupna godišnja bilanca \nEUR"]
[]
[{"$nulls":8},{"$f":"IF(OR(G18>=250,AND(H18>=50000000,I18>=43000000))=TRUE,\"Poduzeće je veliko (osim ako je MSP u skladu s točkom 5. ove Izjave). Popunite samo točku 2. i 5. Izjave.\",\"\")","v":""}]
[null,"1.1.","Udio javnih tijela"]
[null,"a)","Poduzećem podnositelja zahtjeva izravno ili neizravno, zajedno ili samostalno, upravlja jedno ili više javnih tijela s udjelom 25% ili više",{"$nulls":5},"(odaberite)"]
[null,null,"kapitala ili glasačkih prava:"]
[null,"b)","Ako je odgovor pod a) DA, je li javno tijelo autonomno tijelo lokalne vlasti s godišnjim proračunom manjim od 10 mil. EUR i s manje od 5000",{"$nulls":5},"(odaberite)"]
[null,null,"stanovnika, koje ujedno nije samostalno ili zajednički povezano s podnositeljem zahtjeva putem većine kapitala ili glasačkih prava (>50%)?"]
[{"$nulls":8},{"$f":"IF(AND($I$21=\"DA\",$I$23=\"NE\"),\"Poduzeće je veliko (osim ako je MSP u skladu s točkom 5. ove Izjave). Popunite samo točku 2. i 5. Izjave.\",\"\")","v":""}]
[null,"2.","Povezana poduzeća"]
[]
[null,"Tablicu B1 popunite ako podnositelj zahtjeva sastavlja konsolidirane izvještaje ili je uključen u konsolidirane izvještaje drugog poduzeća."]
[]
[null,"Tablica B1 - Podaci konsolidiranih financijskih izvještaja"]
[null,null,"Naziv matičnog društva",null,"OIB","Financijska \ngodina","Broj zaposlenih\n(na temelju sati rada) ","Ukupan godišnji promet \nEUR","Ukupna godišnja bilanca \nEUR"]
[]
[{"$nulls":8},{"$f":"IF(OR(G32>=250,AND(H32>=50000000,I32>=43000000))=TRUE,\"Poduzeće je veliko (osim ako je MSP u skladu s točkom 5. ove Izjave). Popunite samo točku 2. i 5. Izjave.\",\"\")","v":""}]
[null,"Poduzeća uključena kroz konsolidaciju"]
[null,null,"Naziv povezanog poduzeća",null,"OIB","Naziv povezanog poduzeća",null,null,"OIB"]
[]
[]
[]
[]
[null,"(prema potrebi dodati redove)"]
[]
[null,"Tablicu B2 popunite za poduzeća povezana putem većine kapitala ili glasačkih prava (>50%) koja nisu uključena u konsolidirane izvještaje iz Tablice B1, i to:"]
[null,"–","izravno povezana: smještena neposredno uzlazno ili silazno od podnositelja zahtjeva (povezana poduzeća)"]
[null,"–","neizravno povezana: smještena neposredno uzlazno ili silazno od svakog povezanog poduzeća s podnositeljem zahtjeva (povezana poduzeća povezanih poduzeća)"]
[null,"–","povezana putem vlasništva fizičke osobe (ili više njih koje djeluju zajednički) s ukupnim udjelom >50%, i uključena poduzeća posluju na istom ili susjednom tržištu"]
[null,"–","međusobno povezana partnerska poduzeća: ako podnositelj zahtjeva ima više poduzeća vlasnika s udjelom ispod 50% koja kao povezana grupa imaju >50% udjela"]
[]
[null,"Tablica B2 - Povezana poduzeća koja nisu uključena u konsolidirane izvještaje iz Tablice B1"]
[null,"RB","Naziv povezanog poduzeća","OIB","Financijska \ngodina","Udio kapitala ili glasačkih prava *\n(u %)","Broj zaposlenih\n(na temelju sati rada) ","Ukupan godišnji promet \nEUR","Ukupna godišnja bilanca \nEUR"]
[null,"1."]
[null,"2."]
[null,"3."]
[null,"4."]
[null,"5."]
[null,"6."]
[null,"(prema potrebi dodati redove)"]
[{"$nulls":5},"UKUPNO:",{"$f":"SUM(G50:G56)","v":0},{"$f":"SUM(H50:H56)","v":{"v":0,"d":"0.00"}},{"$f":"SUM(I50:I56)","v":{"v":0,"d":"0.00"}}]
[null,"* U slučaju povezanosti putem vlasništva jedne ili više fizičkih osoba, udio vlasništva fizičke osobe unijeti u tablicu B3."]
[]
[null,"Tablicu B3 popunite ako su u Tablici B2 navedena poduzeća povezana s podnositeljem zahtjeva putem vlasništva fizičke osobe (ili više njih koje djeluju zajednički)"]
[]
[null,"Tablica B3 - Fizičke osobe putem kojih postoji povezanost podnositelja zahtjeva s poduzećima iz Tablice B2"]
[null,"RB","Ime i prezime fizičke osobe","OIB","Udio kapitala ili glasačkih prava\n(u %)","Naziv povezanog poduzeća iz Tablice B2",null,"Napomena"]
[null,"1."]
[null,"2."]
[null,"3."]
[null,"4."]
[null,"5."]
[null,"6."]
[null,"(prema potrebi dodati redove)"]
[]
[null,"3.","Partnerska poduzeća"]
[]
[null,"Tablicu C popunite za poduzeća povezana putem udjela kapitala ili glasačkih prava od 25% do 50% koja nisu uključena u konsolidaciju iz Tablice B1, i to:"]
[null,"–","izravno povezana: smještena neposredno uzlazno ili silazno od podnositelja zahtjeva (partneri)"]
[null,"–","neizravno povezana: smještena neposredno uzlazno ili silazno od svakog povezanog poduzeća s podnositeljem zahtjeva (partneri povezanih poduzeća)"]
[null,"Unijeti podatke na temelju konsolidiranih financijskih izvještaja ako postoje. Ako partnersko poduzeće ima povezana poduzeća (putem većine kapitala ili glasačkih prava)"]
[null,"koja eventualno nisu uključena u konsolidirane izvještaje, podacima partnerskog poduzeća treba dodati i podatke takvih povezanih poduzeća (povezana poduzeća partnera)."]
[]
[null,"Na temelju unesenih podataka Tablica C računa ukupne razmjerne podatke na temelju udjela. Međusobno povezana partnerska poduzeća unose se u tablicu B2."]
[]
[null,"Tablica C - Partnerska poduzeća"]
[null,"RB","Naziv partnerskog poduzeća","OIB","Financijska \ngodina","Udio kapitala ili glasačkih prava\n(u %)","Broj zaposlenih\n(na temelju sati rada) ","Ukupan godišnji promet \nEUR","Ukupna godišnja bilanca \nEUR"]
[null,"1."]
[null,"2."]
[null,"3."]
[null,"4."]
[null,"5."]
[null,"6."]
[null,"7."]
[null,"8."]
[null,"9."]
[null,"10."]
[null,"11."]
[null,"12."]
[null,"13."]
[null,"14."]
[{"$nulls":5},"RAZMJERNO prema udjelima kapitala ili glasačkih prava:",{"$f":"SUM($F$84*G84,$F$85*G85,$F$86*G86,$F$87*G87,$F$88*G88,$F$89*G89,$F$90*G90,$F$91*G91,$F$92*G92,$F$93*G93,$F$94*G94,$F$95*G95,$F$96*G96,$F$97*G97)","v":0},{"$f":"SUM($F$84*H84,$F$85*H85,$F$86*H86,$F$87*H87,$F$88*H88,$F$89*H89,$F$90*H90,$F$91*H91,$F$92*H92,$F$93*H93,$F$94*H94,$F$95*H95,$F$96*H96,$F$97*H97)","v":{"v":0,"d":"0.00"}},{"$f":"SUM($F$84*I84,$F$85*I85,$F$86*I86,$F$87*I87,$F$88*I88,$F$89*I89,$F$90*I90,$F$91*I91,$F$92*I92,$F$93*I93,$F$94*I94,$F$95*I95,$F$96*I96,$F$97*I97)","v":{"v":0,"d":"0.00"}}]
[null,"(kliknuti s lijeve strane \"+\" za otvaranje dodatnih redova)"]
[]
[null,"4.","Agregirani podaci za utvrđivanje veličine podnositelja zahtjeva"]
[]
[null,"Tablica D - računa agregirane vrijednosti podataka na temelju kojih se utvrđuje kategorija odnosno veličina podnositelja zahtjeva u skladu s Prilogom I. (članak 2.)"]
[{"$nulls":3},"AGREGIRANI PODACI za godinu:",{"$f":"F18","v":0},null,"Broj zaposlenih\n(na temelju sati rada) ","Ukupan godišnji promet \nEUR","Ukupna godišnja bilanca \nEUR"]
[{"$nulls":4},"Podnositelj zahtjeva ili podaci konsolidiranih izvještaja (ukupno iz Tablice A ili B1)",null,{"$f":"MAX(G18,G32)","v":0},{"$f":"MAX(H18,H32)","v":{"v":0,"d":"0.00"}},{"$f":"MAX(I18,I32)","v":{"v":0,"d":"0.00"}}]
[{"$nulls":4},"Povezana poduzeća koja nisu uključena u konsolid. izvještaje (ukupno iz Tablice B2)",null,{"$f":"G57","v":0},{"$f":"H57","v":{"v":0,"d":"0.00"}},{"$f":"I57","v":{"v":0,"d":"0.00"}}]
[{"$nulls":4},"Partnerska poduzeća (razmjerno iz Tablice C)",null,{"$f":"G98","v":0},{"$f":"H98","v":{"v":0,"d":"0.00"}},{"$f":"I98","v":{"v":0,"d":"0.00"}}]
[{"$nulls":4},"Udio javnih tijela (utjecaj na veličinu ako postoji)",{"$f":"IF(AND($I$21=\"DA\",$I$23=\"NE\"),\"VELIKI\",\"\")","v":""}]
[{"$nulls":3},"Veličina (EU) podnositelja zahtjeva prema ovoj Izjavi:",{"$f":"IF(AND(G109<10,H109<=2000000),\"MIKRO\",\nIF(AND(G109<10,H109>2000000,I109<=2000000),\"MIKRO\",\nIF(AND(G109<10,H109>2000000,H109<=10000000,I109>2000000),\"MALI\",\nIF(AND(G109<10,H109>10000000,I109>2000000,I109<=10000000),\"MALI\",\nIF(AND(G109<10,H109>10000000,H109<=50000000,I109>10000000),\"SREDNJI\",\nIF(AND(G109<10,H109>5000000,I109>10000000,I109<=43000000),\"SREDNJI\",\nIF(AND(G109<10,H109>5000000,I109>43000000),\"VELIKI\",\nIF(AND(G109>=10,G109<50,H109<=10000000),\"MALI\",\nIF(AND(G109>=10,G109<50,H109>10000000,I109<=10000000),\"MALI\",\nIF(AND(G109>=10,G109<50,H109>10000000,H109<=50000000,I109>10000000),\"SREDNJI\",\nIF(AND(G109>=10,G109<50,H109>50000000,I109>10000000,I109<=43000000),\"SREDNJI\",\nIF(AND(G109>=10,G109<50,H109>50000000,I109>43000000),\"VELIKI\",\nIF(AND(G109>=50,G109<250,H109<=50000000),\"SREDNJI\",\nIF(AND(G109>=50,G109<250,H109<=50000000,I109<=43000000),\"SREDNJI\",\nIF(AND(G109>=50,G109<250,H109>50000000,I109>43000000),\"VELIKI\",\nIF(G109>=250,\"VELIKI\",\nIF(AND($I$21=\"DA\",$I$23=\"NE\"),\"VELIKI\",\"\")))))))))))))))))","v":"MIKRO"},null,{"$f":"SUM(G105:G107)","v":0},{"$f":"SUM(H105:H107)","v":{"v":0,"d":"0.00"}},{"$f":"SUM(I105:I107)","v":{"v":0,"d":"0.00"}}]
[]
[null,"5.","Promjena kategorije podnositelja zahtjeva"]
[]
[null,"U odnosu na prethodnu financijsku godinu došlo je do promjene pokazatelja koji bi mogli prouzročiti promjenu kategorije podnositelja zahtjeva:                                                                                                                                                                                                                                                                    "]
[]
[null,"a)","Poduzeće pripada kategoriji MSP-ova (mikro, mala i srednja poduzeća u skladu s Prilogom I. članak 2.),"]
[null,null,"no u obje prethodne dvije financijske godine (n-1, n-2) nije pripadalo ovoj kategoriji:"]
[null,"b)","Poduzeće ne pripada kategoriji MSP-ova (mikro, mala i srednja poduzeća u skladu s Prilogom I. članak 2.),"]
[null,null,"no u obje prethodne dvije financijske godine (n-1, n-2) je pripadalo ovoj kategoriji:"]
[null,"c)","U odnosu na prethodnu financijsku godinu, poduzeće je akviziralo veliko poduzeće ili je pripajanjem nastalo veliko poduzeće."]
[]
[{"$nulls":8},{"$f":"IF(OR($I$115=\"DA\",$I$117=\"DA\",$I$119=\"DA\"),\"Radi utvrđivanja statusa MSP-a, potrebno je, osim za posljednju financijsku godinu, dostaviti popunjenu ovu Izjavu i za obje prethodne financijske godine.\",\"\")","v":""}]
[null,"Napomena: Ako u odnosu na datum zaključenja godišnjih financijskih izvještaja ustanovite da je vaše poduzeće na godišnjoj razini premašilo ili palo ispod praga broja"]
[null,"zaposlenih ili financijskih pragova, to ne dovodi nužno do gubitka ili stjecanja statusa mikro, malog ili srednjeg poduzeća (MSP), osim ako se ti pragovi premašuju"]
[null,"tijekom dvije uzastopne financijske godine."]
[]
[null,"6.","Zaključne izjave"]
[]
[null,"Potpisnici ove Izjave potvrđuju:"]
[null,"–","da su upoznati s definicijom mikro, malih i srednjih poduzeća iz Priloga I. Uredbe Komisije (EU) br. 651/2014 te da su svi podaci u ovoj Izjavi uneseni u skladu s"]
[null,null,"predmetnom definicijom kao i da dopuštaju njihovu provjeru;"]
[null,"–","da su podaci u ovoj izjavi potpuni i istiniti te izjavljuju, pod materijalnom i krivičnom odgovornošću, da su upoznati s pravnim posljedicama kaznene odgovornosti za"]
[null,null,"davanje netočnih podataka;"]
[null,"–","da će, u slučaju promjene bilo kojeg od unesenih podataka iz ove Izjave, odmah po promjeni pisanim putem izvijestiti HBOR, odnosno u slučaju kreditiranja putem"]
[null,null,"financijskih institucija (poslovna banka ili leasing društvo), financijsku instituciju kojoj je predana ova Izjava."]
[]
[null,"Mjesto i datum",{"$nulls":4},"Ime i prezime osobe ovlaštene za zastupanje i potpis"]

{"sheet":"Izjava o potporama","index":1,"n_rows":97,"n_cols":26,"rows_kept":97,"hidden":true,"merged":[[4,2,4,12],[8,3,8,4],[8,11,8,12],[9,3,9,4],[9,11,9,12],[10,3,10,4],[10,11,10,12],[11,3,11,4],[11,11,11,12],[23,11,24,11],[25,11,26,11],[27,1,28,1],[27,2,28,10],[27,11,28,11],[64,2,64,4],[74,9,74,11],[98,1,98,3],[98,10,98,12]]}
[]
[]
[]
[]
[null,null,"IZJAVA O POTPORAMA"]
[]
[null,"Podnositelj Zahtjeva za financiranje ili povezano poduzeće u smislu točke 2. ove Izjave",{"$nulls":7},"Podaci prema Zahtjevu za financiranje podnositelja zahtjeva"]
[null,"(dalje: podnositelj zahtjeva/povezano poduzeće)",{"$nulls":7},"(dalje: zahtjev)"]
[null,"Uloga",null,"(odaberite)",{"$nulls":5},"Vrsta ulaganja",null,"(odaberite)"]
[null,"Naziv",{"$nulls":7},"Datum podnošenja zahtjeva"]
[null,"Mjesto sjedišta",{"$nulls":7},"Županija ulaganja",null,"(odaberite)"]
[null,"OIB",{"$nulls":7},"Datum početka projekta"]
[]
[null,"Zahtjev za financiranje u smislu ove Izjave znači zahtjev za izravno kreditiranje ili putem poslovne banke ili zahtjev za leasing financiranje putem leasing društva, ovisno o slučaju."]
[null,"Poduzeće u smislu ove Izjave znači svaki subjekt koji se bavi gospodarskom djelatnošću, bez obzira na njegov pravni oblik."]
[]
[null,"Na povezano poduzeće se odnose potpore iz toč. 1. pod a) i b) te zaključna izjava u posljednjem odlomku toč. 5. ove Izjave, a ostali dijelovi ove Izjave na povezano poduzeće se ne odnose niti ga obvezuju."]
[null,"Ako je odabrano \"povezano poduzeće\", \"obrtna sredstva\" ili u tablici potpora \"potpora male vrijednosti\", označena su polja koja se u tom slučaju ne popunjavaju."]
[]
[null,"1.","Podaci o potporama"]
[]
[null,"Podnositelju zahtjeva/povezanom poduzeću dodijeljene su sljedeće potpore (i/ili ima zatražene potpore u postupku odobrenja):"]
[]
[null,"a)","potpore male vrijednosti u razdoblju od 3 (tri) godine unatrag računajući od datuma podnošenja zahtjeva ",{"$nulls":8},"(odaberite)"]
[null,null,"(uključujući i oslobođenja i/ili olakšice od plaćanja poreza na dobit i/ili dohodak koje se prema zakonskim propisima utvrđuju u skladu s pravilima o potporama)"]
[null,"b)","regionalne potpore za druge projekte u istoj županiji na koju se odnosi zahtjev, ",{"$nulls":8},"(odaberite)"]
[null,null,"koji su započeti u razdoblju od 3 (tri) godine unatrag računajući od datuma početka projekta za koji se podnosi zahtjev"]
[null,"c)","potpore za istu investiciju (prihvatljive/opravdane troškove) za koju se podnosi zahtjev",{"$nulls":8},"(odaberite)"]
[]
[]
[null,"Sve navedene potpore unose se donju tablicu. Podaci o dodijeljenim potporama nalaze se u odluci/obavijesti davatelja potpore i/ili u ugovoru s davateljem potpore."]
[]
[null,null,"ako je odgovor pod a) DA, navedite potpore male vrijednosti od:",{"$nulls":4},{"$f":"IFERROR(EDATE($L$10,-36),\"(računa datum, Datum podnošenja zahtjeva treba biti popunjen)\")","v":"(računa datum, Datum podnošenja zahtjeva treba biti popunjen)"}]
[null,null,"ako je odgovor pod b) DA, navedite regionalne potpore za projekte započete od:",{"$nulls":4},{"$f":"IFERROR(EDATE($L$12,-36),\"(računa datum, Datum početka projekta treba biti popunjen)\")","v":"(računa datum, Datum početka projekta treba biti popunjen)"}]
[]
[null,"RB","Vrsta potpore","Dodijeljena ili zatražena potpora","Datum dodjele potpore","Naziv davatelja potpore","Iznos potpore EUR","Opis ulaganja","Pravni temelj dodjele potpore","Županija ulaganja","Ukupan iznos prihvatljivih (opravdanih) troškova EUR *","Potpora za istu investiciju za koju se podnosi zahtjev","Napomena"]
[null,"1.","(odaberite)","(odaberite)",{"$nulls":4},"(odaberite)","(odaberite)",null,"(odaberite)"]
[null,"2.","(odaberite)","(odaberite)",{"$nulls":4},"(odaberite)","(odaberite)",null,"(odaberite)"]
[null,"3.","(odaberite)","(odaberite)",{"$nulls":4},"(odaberite)","(odaberite)",null,"(odaberite)"]
[null,"4.","(odaberite)","(odaberite)",{"$nulls":4},"(odaberite)","(odaberite)",null,"(odaberite)"]
[null,"5.","(odaberite)","(odaberite)",{"$nulls":4},"(odaberite)","(odaberite)",null,"(odaberite)"]
[null,"6.","(odaberite)","(odaberite)",{"$nulls":4},"(odaberite)","(odaberite)",null,"(odaberite)"]
[null,"7.","(odaberite)","(odaberite)",{"$nulls":4},"(odaberite)","(odaberite)",null,"(odaberite)"]
[null,"8.","(odaberite)","(odaberite)",{"$nulls":4},"(odaberite)","(odaberite)",null,"(odaberite)"]
[null,"9.","(odaberite)","(odaberite)",{"$nulls":4},"(odaberite)","(odaberite)",null,"(odaberite)"]
[null,"10.","(odaberite)","(odaberite)",{"$nulls":4},"(odaberite)","(odaberite)",null,"(odaberite)"]
[null,"11.","(odaberite)","(odaberite)",{"$nulls":4},"(odaberite)","(odaberite)",null,"(odaberite)"]
[null,"12.","(odaberite)","(odaberite)",{"$nulls":4},"(odaberite)","(odaberite)",null,"(odaberite)"]
[null,"(kliknuti \"+\" s lijeve strane za otvaranje dodatnih redova)"]
[null,"* Ukupan iznos prihvatljivih (opravdanih) troškova upisati samo ako se radi o regionalnoj potpori za druge projekte u istoj županiji na koju se odnosi zahtjev."]
[]
[null,"2.","Povezana poduzeća",{"$nulls":22},"  "]
[]
[null,"Ako podnositelj zahtjeva ima povezana poduzeća putem većine kapitala ili glasačkih prava (>50%) i u skladu Prilogom I. Uredbe Komisije (EU) br. 651/2014 (članak 3., stavak 3.), potrebno je:"]
[null,"a)","dostaviti Izjavu o potporama koju je popunila ovlaštena osoba svakog povezanog poduzeća, i to za:"]
[null,"–","poduzeća uključena kroz konsolidaciju (iz Tablice B1 Izjave o veličini)"]
[null,"–","izravno i neizravno povezana (iz Tablice B2 Izjave o veličini)"]
[null,"–","za slučaj povezanosti putem vlasništva fizičke osobe (iz Tablice B2 Izjave o veličini): samo ako je fizička osoba 100%-tni vlasnik dva ili više poduzeća te ujedno direktor ili postavlja direktore"]
[null,"b)","u donjoj tablici pod Ukupne potpore, navesti zbrojene ukupne potpore svih poveznih poduzeća u skladu s točkom 3. njihovih Izjava o potporama."]
[]
[null,"3.","Ukupne potpore"]
[]
[null,"RB","Ukupne potpore",null,null,{"$f":"IFERROR(D9,\"(podnositelj zahtjeva/povezana osoba)\")","v":"(odaberite)"},"sva povezana poduzeća","sveukupno"]
[null,"1.","Potpore male vrijednosti",null,null,{"$f":"SUMIF(C37:C48,sifrarnik!E2,G37:G48)","v":{"v":0,"d":"0.00"}},null,{"$f":"F64+G64","v":{"v":0,"d":"0.00"}}]
[null,"2.","Regionalne potpore",null,null,{"$f":"SUMIF(C37:C48,sifrarnik!E3,G37:G48)","v":{"v":0,"d":"0.00"}},null,{"$f":"F65+G65","v":{"v":0,"d":"0.00"}}]
[null,null,"- u istoj županiji na koju se odnosi zahtjev",null,null,{"$f":"SUMIFS(G37:G48,C37:C48,sifrarnik!E3,J37:J48,L11)","v":{"v":0,"d":"0.00"}},null,{"v":0,"d":"0.00"}]
[null,"3.","Ostale potpore",null,null,{"$f":"SUMIFS(G37:G48,C37:C48,sifrarnik!E9,J37:J48,L12)","v":{"v":0,"d":"0.00"}},null,{"v":0,"d":"0.00"}]
[null,"4.","Potpore za istu investiciju (prihvatljive troškove)",null,null,{"$f":"SUMIF(L37:L48,sifrarnik!I2,G37:G48)","v":{"v":0,"d":"0.00"}},"–",{"$f":"F68","v":{"v":0,"d":"0.00"}}]
[]
[null,"4.","Status podnositelja zahtjeva"]
[]
[null,"Potpisnici ove izjave za podnositelja zahtjeva izjavljuju:"]
[null,"a)","da nije predmet cjelokupnog stečajnog postupka niti ispunjava kriterije za pokretanje cjelokupnog stečajnog postupka na zahtjev svojih vjerovnika u skladu s nacionalnim zakonodavstvom"]
[null,"b)","u slučaju da je veliki poduzetnik, da je u situaciji koja odgovara najmanje kreditnom rejtingu B - (B minus);"]
[null,"c)","da u skladu s definicijom poduzetnika u teškoćama na poveznici:",{"$nulls":6},"(odaberite)"]
[]
[null,"5.","Zaključne izjave"]
[]
[null,"Potpisnici ove izjave za podnositelja zahtjeva izjavljuju:"]
[null,"–","da podnositelj zahtjeva ne podliježe neizvršenom nalogu za povrat državne potpore na temelju prethodne odluke Europske komisije kojom se potpora ocjenjuje nezakonitom i neusklađenom s unutarnjim"]
[null,null,"tržištem temeljem čl. 1. toč. 4. a) Uredbe Komisije (EU) br. 651/2014 od 17.6.2014. o ocjenjivanju određenih kategorija potpora spojivima s unutarnjim tržištem u primjeni članaka 107. i 108. Ugovora;"]
[null,"–","da su upoznati s važećim propisima o državnim potporama te u slučaju da Europska komisija (dalje: komisija) kao tijelo nadležno za nalaganje povrata državnih potpora donese odluku kojom se od"]
[null,null,"Republike Hrvatske zahtijeva da poduzme sve neophodne mjere kako bi od korisnika povukla sredstva potpore kao nezakonite ili zloupotrebljene (dalje: odluka o povlačenju potpore), suglasan je i"]
[null,null,"obvezuje se vratiti HBOR-u ukupan iznos državnih potpora kojeg treba povući sukladno odluci o povlačenju potpore, uključujući i kamatu po odgovarajućoj stopi koju odredi Komisija, plativom od dana"]
[null,null,"kada je nezakonita potpora stavljena na raspolaganje korisniku do dana povlačenja, tj. povrata iznosa potpore;"]
[null,"–","da su upoznati s činjenicom da u slučaju kada HBOR korisniku potpore dodjeljuje potporu, HBOR sukladno svojim obvezama iz Zakona o pravu na pristup informacijama (ZPPI) na svojim mrežnim"]
[null,null,"stranicama objavljuje naziv korisnika potpore i iznos dodijeljene državne potpore te naziv korisnika potpore i iznos dodijeljene potpore male vrijednosti, i to u drugom kvartalu svake godine za potpore"]
[null,null,"dodijeljene u prethodnoj godini (napomena: potpora se dodjeljuje sklapanjem ugovora o kreditu ili ugovora o leasing financiranju, ovisno o slučaju);"]
[null,"–","da su upoznati s HBOR-ovom obvezom izvještavanja nadležnih institucija za praćenje dodijeljenih državnih potpora i potpora male vrijednosti u skladu sa svakodobno važećim propisima, a koja obveza"]
[null,null,"uključuje prenošenje podataka navedenih u ovoj Izjavi i u pratećoj dokumentaciji trećim osobama, kao i javnu objavu podataka o odobrenim potporama i načinu njihovog korištenja, od strane trećih osoba/"]
[null,null,"nadležnih institucija u sklopu izvješća o odobrenim potporama koja im je HBOR obvezan dostavljati, te izjavljuju da su s navedenim izvještavanjem, prenošenjem i javnom objavom podataka suglasni."]
[]
[null,"Potpisnici ove izjave za podnositelja zahtjeva/povezano poduzeće izjavljuju:"]
[null,"–","da su suglasni kako HBOR bilo kakvo utvrđivanje netočnosti u ovoj Izjavi može smatrati valjanim razlogom za otkaz suradnje s podnositeljem zahtjeva prije sklapanja ugovora o kreditu ili ugovora o"]
[null,null,"leasing financiranju, ovisno o slučaju (dalje: ugovor), odnosno za ugovora ili drugog oblika suradnje nakon sklapanja ugovora, te da će HBOR-u naknaditi sve troškove koji bi mu zbog toga nastali."]
[]
[null,"Mjesto i datum",{"$nulls":8},"Ime i prezime ovlaštene osobe i potpis"]

{"sheet":"Prilog I.","index":2,"n_rows":85,"n_cols":2,"rows_kept":85}
[]
[null,"Prilog I. Uredbe Komisije (EU) br. 651/2014 dostupan je ovdje i na poveznici:"]
[]
[null,"U slučaju nepodudaradanja teksta iz ovog Priloga I. mjerodavan je Prilog I. Uredbe Komisije (EU)."]
[]
[null,"PRILOG I. "]
[]
[null,"Definicije MSP-ova "]
[]
[null,"Članak 1. "]
[null,"Poduzeće"]
[null,"Poduzeće je svaki subjekt koji se bavi ekonomskom djelatnošću, bez obzira na njegov pravni oblik. To uključuje, posebno, samozaposlene osobe i obiteljska poduzetnike koji se bave obrtom ili drugim djelatnostima te partnerstva ili udruženja koja se redovno bave ekonomskom djelatnošću."]
[]
[null,"Članak 2."]
[null,"Broj osoblja i financijski pragovi kojima se određuju kategorije poduzeća"]
[null,"1. Kategorija mikro, malih i srednjih poduzeća („MSP”) sastoji se od poduzeća koja imaju manje od 250 zaposlenih i godišnji promet koji ne premašuje 50 milijuna EUR i/ili godišnju bilancu koja ne premašuje 43 milijuna EUR."]
[]
[null,"2. Unutar kategorije MSP-ova malo poduzeće definira se kao poduzeće koje ima manje od 50 zaposlenih, a čiji godišnji promet i/ili godišnja bilanca ne premašuje 10 milijuna EUR."]
[]
[null,"3. Unutar kategorije MSP-ova mikro-poduzeće definira se kao poduzeće koje ima manje od 10 zaposlenih, a čiji godišnji promet i/ili godišnja bilanca ne premašuje 2 milijuna EUR."]
{"$rows_empty":7}
[null,"Članak 3. "]
[null,"Vrste poduzeća koje se uzimaju u obzir pri izračunu broja osoblja i financijskih iznosa"]
[null,"1. „Neovisno poduzeće” je svako poduzeće koje nije razvrstano pod partnersko poduzeće u smislu stavka 2. ni pod povezano poduzeće u smislu stavka 3."]
[]
[null,"2. „Partnersko poduzeće” su sva poduzeća koja nisu razvrstana pod povezana poduzeća u smislu stavka 3., a između kojih postoji sljedeća veza: poduzeće (poduzeće-majka) posjeduje, samostalno ili zajedno s jednim ili više povezanih poduzeća u smislu stavka 3., 25 % ili više kapitala ili glasačkih prava drugog poduzeća (poduzeće-kći)."]
[]
[null,"Međutim, poduzeće se može svrstati u neovisna poduzeća, to jest u ona koja nemaju drugih partnerskih poduzeća, čak i ako su sljedeći ulagači dosegli ili premašili prag od 25 %, pod uvjetom da ti ulagači nisu, u smislu stavka 3., bilo samostalno ili zajednički povezani s dotičnim poduzećem:"]
[null,"(a) javna investicijska društva, društva rizičnog kapitala, pojedinci ili skupine pojedinaca s redovitom djelatnošću ulaganja rizičnog kapitala koji ulažu vlasnički kapital u poduzeća koja nisu uvrštena na burzu (poslovni anđeli), pod uvjetom da je ukupno ulaganje tih poslovnih anđela u isto poduzeće manje od 1 250 000 EUR;"]
[null,"(b) sveučilišta ili neprofitni istraživački centri;"]
[null,"(c) institucionalni ulagači, uključujući fondove regionalnog razvoja;"]
[null,"(d) autonomna tijela lokalne vlasti s godišnjim proračunom manjim od 10 milijuna EUR i s manje od 5 000 stanovnika."]
[]
[null,"3. „Povezana poduzeća” su poduzeća među kojima postoji jedna od sljedećih veza:"]
[null,"(a) jedno poduzeće ima većinu glasačkih prava vlasnika udjela ili članova u drugom poduzeću;"]
[null,"(b) jedno poduzeće ima pravo postaviti ili smijeniti većinu članova upravnog, upravljačkog ili nadzornog tijela drugog poduzeća;"]
[null,"(c) jedno poduzeće ima pravo ostvarivati vladajući utjecaj na drugo poduzeće na temelju ugovora sklopljenog s tim poduzećem ili na temelju odredbe njegova statuta ili društvenog ugovora;"]
[null,"(d) jedno poduzeće, koji je vlasnik udjela ili član drugog poduzeća, sam kontrolira, prema dogovoru s drugim vlasnicima udjela ili članovima tog poduzeća, većinu glasačkih prava vlasnika udjela ili članova u tom poduzeću"]
[]
[null,"Postoji pretpostavka da vladajući utjecaj ne postoji ako se ulagači navedeni u drugom podstavku stavka 2. ne uključuju izravno ili neizravno u upravljanje dotičnim poduzećem, ne dovodeći u pitanje svoja prava u svojstvu vlasnika udjela."]
[]
[null,"Povezanima se smatraju i poduzeća koja su međusobno povezana preko jednog ili više drugih poduzeća, odnosno bilo kojeg ulagača spomenutog u stavku 2., na bilo koji od načina opisanih u prvom podstavku."]
[]
[null,"Povezanima se smatraju i poduzeća koja jednu od tih povezanosti ostvaruju posredstvom fizičke osobe ili skupine fizičkih osoba koje zajedno djeluju ako se bave svojom djelatnošću ili dijelom svoje djelatnosti na istom mjerodavnom tržištu ili susjednim tržištima."]
[null,"„Susjednim tržištem” smatra se tržište proizvoda ili usluga izravno smješteno uzlazno ili silazno u odnosu na mjerodavno tržište."]
[]
[null,"4. Osim u slučajevima utvrđenima u stavku 2., drugom podstavku, poduzeće se ne može smatrati MSP-om ako jedno ili više tijela javne vlasti zajedno ili samostalno, izravno ili neizravno upravlja s 25 % ili više kapitala ili glasačkih prava u dotičnom poduzeću."]
[]
[null,"5. Poduzeća mogu donijeti izjavu o statusu neovisnog poduzeća, partnerskog poduzeća ili povezanog poduzeća, uključujući podatke o pragovima utvrđene u članku 2. Ta izjava može se donijeti čak i ako je kapital raspoređen na takav način da je nemoguće točno odrediti tko ga posjeduje, u kojem slučaju poduzeće može u dobroj vjeri izjaviti da je moguće legitimno pretpostaviti da jedno podu zeće ili više međusobno povezanih poduzeća ne posjeduje 25 % kapitala ili više u dotičnom poduzeću. Te se izjave donose ne dovodeći u pitanje provjere ili istrage predviđene nacionalnim pravilima ili pravilima Unije."]
[]
[null,"Članak 4."]
[null,"Podatci koji se upotrebljavaju za broj osoblja, financijske iznose i referentno razdoblje "]
[null,"1. Podatci koji se upotrebljavaju za broj osoblja i financijske iznose su podatci koji se odnose na posljednje odobreno računovodstveno razdoblje, izračunani na godišnjoj razini. U obzir se uzimaju od datuma zaključenja financijskih izvještaja. Iznos koji se upotrebljava kao iznos prometa računa se bez poreza na dodanu vrijednost (PDV) i drugih neizravnih poreza."]
[]
[null,"2. Ako na datum zaključenja financijskih izvještaja poduzeće ustanovi da je na godišnjoj razini premašilo prag broja osoblja ili financijske pragove utvrđene u stavku 2. ili palo ispod njih, to neće dovesti do gubitka ili stjecanja statusa srednjeg, malog ili mikro-poduzeća, osim ako ti pragovi nisu premašeni tijekom dva uzastopna računovodstvena razdoblja."]
[]
[null,"3. U slučaju novoosnovanih poduzeća čiji financijski izvještaji još nisu odobreni, primjenjuju se podatci preuzeti iz procjene bona fide izvršene tijekom financijske godine."]
[]
[null,"Članak 5."]
[null,"Broj osoblja "]
[null,"Broj osoblja odgovara broju godišnjih jedinica rada, to jest broju osoba koje su bile zaposlene na puno radno vrijeme kod dotičnog poduzeća ili u njegovo ime, tijekom cijele promatrane referentne godine. Rad osoba koje nisu bile zaposlene punu godinu, rad onih koje su radile skraćeno radno vrijeme, bez obzira na trajanje, i sezonski rad računaju se kao dijelovi godišnjih jedinica rada. Osoblje se sastoji:"]
[null,"(a) od zaposlenika;"]
[null,"(b) od osoba koje rade za podređeno poduzeće, a smatraju se zaposlenima prema nacionalnom pravu;"]
[null,"(c) od vlasnika-upravitelja;"]
[null,"(d) od partnera koji se bave redovitom djelatnošću u poduzeću i ostvaruju pogodnost od njegovih financijskih koristi."]
[null,"Pripravnici i studenti uključeni u stručno usavršavanje na temelju ugovora o pripravništvu ili ugovora o stručnom usavršavanju ne broje se kao osoblje. Trajanje porodiljskog ili roditeljskog dopusta ne uračunava se."]
[]
[null,"Članak 6."]
[null,"Utvrđivanje podataka poduzeća"]
[null,"1. U slučaju neovisnog poduzeća, podatci, uključujući broj osoblja, određuju se isključivo na temelju financijskih izvještaja tog poduzeća."]
[]
[null,"2. Podatci, uključujući broj osoblja, poduzeće koje ima partnerska poduzeća ili povezana poduzeća određuju se na temelju financijskih izvještaja i ostalih podataka poduzeća, odnosno, ako postoje, konsolidiranih financijskih izvještaja poduzeća ili konsolidiranih financijskih izvještaja u koje je poduzeće uključeno konsolidacijom."]
[null,"Podatcima spomenutima u prvom podstavku dodaju se podatci svakog poduzeća koje je partner dotičnom poduzetniku i koje se nalazi neposredno uzlazno ili silazno od njega. Zbrajanje je razmjerno postotnom udjelu u kapitalu ili glasačkim pravima (ovisno o tome što je veće). U slučaju unakrsnog vlasništva primjenjuje se veći postotak."]
[null,"Podatcima iz prvog i drugog podstavka dodaje se 100 % podataka svakog poduzeća koje je izravno ili neizravno povezano s dotičnim poduzećem ako ti podatci već nisu uključeni konsolidacijom financijskih izvještaja."]
[]
[null,"3. Za potrebe primjene stavka 2. podatci poduzeća koji su partneri dotičnog poduzeća dobivaju se iz njihovih financijskih izvještaja i njihovih drugih podataka, i to konsolidiranih ako postoje. Njima se dodaje 100 % podataka poduzeća koja su povezana s tim partnerskim poduzećima, osim ako podatci iz njihovih financijskih izvještaja već nisu uključeni kroz konsolidaciju."]
[null,"Za potrebe primjene istog stavka 2. podatci poduzeća koja su povezana s dotičnim poduzećem dobivaju se iz njihovih financijskih izvještaja i njihovih drugih podataka, i to konsolidiranih ako postoje. Njima se razmjerno dodaju podatci svih mogućih partnerskih poduzeća tog povezanog poduzeća, koji se nalaze neposredno uzlazno ili silazno od tog povezanog poduzeća, osim ako ti podatci već nisu uključeni u konsolidirana financijska izvještaja s postotkom barem razmjernim postotku utvrđenom u drugom podstavku stavka 2."]
[]
[null,"4. Ako se u konsolidiranim financijskim izvještajima ne nalaze nikakvi podatci o osoblju za dano poduzeće, brojčani podatci o osoblju dobivaju se razmjernim zbrajanjem podataka njegovih partnerskih poduzeća i dodavanjem podataka njegovih povezanih poduzeća. "]

{"sheet":"sifrarnik","index":3,"n_rows":22,"n_cols":23,"rows_kept":22,"hidden":true}
["(odaberite)",null,"(odaberite)",null,"(odaberite)",null,"(odaberite)",null,"(odaberite)","marko","(odaberite)",null,"(odaberite)",null,"(odaberite)"]
["podnositelj zahtjeva",null,"obrtna sredstva",null,"Potpora male vrijednosti",null,"dodijeljena",null,"DA","De minimis","Uredba Komisije (EU) br. 2023/2831 (de minimis potpore)",null,"BJELOVARSKO-BILOGORSKA",null,"nije poduzetnik u teškoćama",null,null,"MSP","Broj zaposlenih\n(na temelju sati rada) ",null,"Ukupan godišnji promet\nEUR",null,"Ukupna godišnja bilanca \nEUR"]
["povezano poduzeće",null,"investicijsko ulaganje",null,"Regionalna potpora - članak 14.",null,"zatražena",null,"NE","De minimis poljoprivreda","Uredba Komisije (EU) br. 1408/2013 (de minimis potpore poljoprivreda)",null,"BRODSKO-POSAVSKA",null,"je poduzetnik u teškoćama",null,null,"mikro","< 10","i","≤ 2 milijuna","i/ili","≤ 2 milijuna"]
[{"$nulls":4},"Potpora za ulaganje za MSP - članak 17.",{"$nulls":4},"De minimis 2013.","Uredba Komisije (EU) br. 1407/13 od 18.12.2013. (potpore male vrijednosti za industriju i usluge, te preradu i trženje poljoprivrednih proizvoda)",null,"DUBROVAČKO-NERETVANSKA",{"$nulls":4},"mali","< 50","i","≤ 10 milijuna","i/ili","≤ 10 milijuna"]
[{"$nulls":4},"Potpora za EnU - članak 38.",{"$nulls":4},"De minimis ribarstvo","Uredba Komisije (EU) br. 717/2014 od 27.06.2014. (potpore male vrijednosti u sektoru ribarstva i akvakulture)",null,"GRAD ZAGREB",{"$nulls":4},"srednji","< 250","i","≤ 50 milijuna","i/ili","≤ 43 milijuna"]
[{"$nulls":4},"Potpora za EnU zgrada - članak 38.a",{"$nulls":4},"GBER","Uredba Komisije (EU) br. 651/2014 (GBER) sa svim izmjenama i dopunama",null,"ISTARSKA"]
[{"$nulls":4},"Potpora za OIE i kogeneraciju - članak 41.",{"$nulls":4},"ABER","Uredba Komisije (EU) br. 702/2014 (ABER) sa svim izmjenama i dopunama - poljoprivreda",null,"KARLOVAČKA"]
[{"$nulls":4},"Potpora za lokalnu infrastrukturu - članak 56.",{"$nulls":4},"Ostalo","ostalo - navesti pod Napomena",null,"KOPRIVNIČKO-KRIŽEVAČKA"]
[{"$nulls":4},"ostalo - navesti pod Napomena",{"$nulls":7},"KRAPINSKO-ZAGORSKA"]
[{"$nulls":12},"LIČKO-SENJSKA"]
[{"$nulls":12},"MEĐIMURSKA"]
[{"$nulls":12},"OSJEČKO-BARANJSKA"]
[{"$nulls":12},"POŽEŠKO-SLAVONSKA"]
[{"$nulls":12},"PRIMORSKO-GORANSKA"]
[{"$nulls":12},"SISAČKO-MOSLAVAČKA"]
[{"$nulls":12},"SPLITSKO-DALMATINSKA"]
[{"$nulls":12},"ŠIBENSKO-KNINSKA"]
[{"$nulls":12},"VARAŽDINSKA"]
[{"$nulls":12},"VIROVITIČKO-PODRAVSKA"]
[{"$nulls":12},"VUKOVARSKO-SRIJEMSKA"]
[{"$nulls":12},"ZADARSKA"]
[{"$nulls":12},"ZAGREBAČKA"]